fUST/lending_fUST_20240504
["ID","MTS","AMOUNT","RATE_DAILY","PERIOD"]
[325398314,1714822749396,1512.427319,0.00019814,2]
[325398315,1714822768338,8600.0,0.0001,2]
[325398316,1714822809294,150.0,0.0001981,14]
[325398317,1714822809935,150.0,0.00020179,14]
[325398318,1714822831799,150.0,0.0001981,14]
[325398319,1714822832382,150.0,0.00020179,14]
[325398320,1714822833655,150.0,0.00020549,14]
[325398321,1714822834273,150.0,0.00020918,14]
[325398322,1714823033599,156.68202532,0.000189,2]
[325398323,1714823356564,1347.30375243,9.999e-05,2]
[325398328,1714823408972,150.0,0.00019848,14]
[325398329,1714823409543,150.0,0.00020214,14]
[325398330,1714823410099,150.0,0.0002058,14]
[325398331,1714823410761,150.0,0.00020946,14]
[325398332,1714823430240,155.5,0.00019848,14]
[325398333,1714823430776,155.5,0.00020214,14]
[325398339,1714823431509,155.5,0.0002058,14]
[325398373,1714823431997,155.5,0.00020946,14]
[325398375,1714823432013,-793.30130103,0.00020635,2]
[325398377,1714823432023,-1173.93458957,0.00020636,2]
[325398379,1714823432037,-4290.8067402,0.00020636,2]
[325398381,1714823432046,-7878.87670671,0.00020636,2]
[325398383,1714823432056,-1622.84993563,0.00020636,2]
[325398385,1714823432065,-495.551,0.00020874,2]
[325398387,1714823432075,-150.0,0.00020874,2]
[325398389,1714823432084,-150.307,0.00020874,2]
[325398391,1714823432094,-216.36764168,0.000209,2]
[325398393,1714823432105,-2547.7495374,0.00020997,2]
[325398394,1714823432114,-2628.34812708,0.00020997,2]
[325398396,1714823432123,-154.7215013,0.00020998,2]
[325398398,1714823432133,-26503.07993873,0.00020999,2]
[325398445,1714823438127,-5814.10771169,0.00020635,2]
[325398446,1714823438137,-521.12221189,0.00020635,2]
[325398447,1714823438147,-839.3701056,0.00020999,2]
[325398452,1714823441339,-30591.23409969,0.00020999,2]
[325398453,1714823441349,-8957.48061808,0.00021,2]
[325398454,1714823441361,-2842.68315395,0.00021,2]
[325398455,1714823441372,-150.0,0.0002121,2]
[325398456,1714823441384,-155.5,0.00021312,14]
[325398457,1714823441394,-854.12968605,0.000214,2]
[325398458,1714823441404,-854.12968605,0.000214,2]
[325398459,1714823441412,-854.12968605,0.000214,2]
[325398460,1714823441422,-854.12968605,0.000214,2]
[325398461,1714823441431,-250.52795764,0.000214,2]
[325398462,1714823441441,-250.52795763,0.000214,2]
[325398463,1714823441450,-250.52795763,0.000214,2]
[325398464,1714823441460,-250.52795763,0.000214,2]
[325398465,1714823441471,-250.52795763,0.000214,2]
[325398466,1714823441480,-250.52795763,0.000214,2]
[325398467,1714823441489,-250.52795763,0.000214,2]
[325398468,1714823441498,-854.12968605,0.00021404,2]
[325398469,1714823441507,-854.12968605,0.00021447,2]
[325398470,1714823441517,-854.12968605,0.00021491,2]
[325398471,1714823441526,-250.52795763,0.00021497,2]
[325398472,1714823441535,-854.12968605,0.00021535,2]
[325398473,1714823441544,-854.12968605,0.00021578,2]
[325398474,1714823441553,-216.36764168,0.000216,2]
[325398475,1714823441563,-854.12968605,0.00021622,2]
[325398476,1714823441571,-155.5,0.00021678,14]
[325398477,1714823441581,-155.30284797,0.00021697,2]
[325398478,1714823441591,-213.82902279,0.00021697,2]
[325398479,1714823441601,-285.78850173,0.00021697,2]
[325398480,1714823441611,-162.47318876,0.00021697,2]
[325398481,1714823441622,-155.11171458,0.00021697,2]
[325398482,1714823441632,-162.8308823,0.00021697,2]
[325398483,1714823441642,-277.16242384,0.00021697,2]
[325398484,1714823441652,-156.06716678,0.00021798,2]
[325398485,1714823441663,-163.53475333,0.00021798,2]
[325398486,1714823441672,-173.96176392,0.00021798,4]
[325398487,1714823441683,-200.0,0.00021798,2]
[325398488,1714823441694,-170.69119317,0.00021798,2]
[325398489,1714823441705,-292.70398565,0.000218,2]
[325398490,1714823441715,-265.79688744,0.00021896,2]
[325398491,1714823441724,-9477.4135547,0.00021918,2]
[325398492,1714823441735,-166.666666,0.00021918,2]
[325398493,1714823441745,-363.8928296,0.00022,2]
[325398494,1714823441754,-214.00124737,0.00022,2]
[325398495,1714823441765,-177.0,0.00022,2]
[325398496,1714823441774,-167.422278,0.00022021,2]
[325398497,1714823441783,-1675.045699,0.00022021,2]
[325398498,1714823441792,-4653.282176,0.00022021,2]
[325398499,1714823441802,-2512.568548,0.00022021,2]
[325398500,1714823441813,-155.5,0.00022043,14]
[325398501,1714823441822,-1675.045699,0.00022296,2]
[325398502,1714823441832,-4653.282176,0.00022296,2]
[325398503,1714823441841,-2512.568548,0.00022296,2]
[325398504,1714823441851,-216.36764168,0.000223,2]
[325398505,1714823441864,-155.5,0.00022409,14]
[325398506,1714823441874,-166.666666,0.00022431,2]
[325398507,1714823441883,-166.0,0.0002254,2]
[325398508,1714823441892,-1675.045699,0.00022572,2]
[325398509,1714823441902,-4653.282176,0.00022572,2]
[325398510,1714823441911,-2512.568548,0.00022572,2]
[325398511,1714823441921,-155.5,0.00022775,14]
[325398512,1714823441931,-2458.51335612,0.00022845,2]
[325398513,1714823441940,-20210.54550558,0.00022846,2]
[325398514,1714823441951,-1675.045699,0.00022847,2]
[325398515,1714823441961,-4653.282176,0.00022847,2]
[325398516,1714823441970,-2512.568548,0.00022847,2]
[325398517,1714823441980,-166.666666,0.00022944,2]
[325398518,1714823441989,-155.22535951,0.00022998,2]
[325398519,1714823441998,-266.29585343,0.00022998,2]
[325398520,1714823442008,-248.07923783,0.00022998,2]
[325398521,1714823442017,-683.61842486,0.00022999,2]
[325398522,1714823442026,-5011.68518823,0.00023,2]
[325398523,1714823442036,-43059.59916356,0.00023,2]
[325398575,1714823443188,-1675.70844264,0.00023,2]
[325398576,1714823443200,-1804.323423,0.00023,2]
[325398577,1714823443211,-3012.47132687,0.00023,2]
[325398591,1714823446073,-871.13088573,0.00023,2]
[325398603,1714823626280,10000.0,0.0002,2]
[325398604,1714823639079,10000.0,0.0002,2]
[325398605,1714823640508,8485.61748417,0.0002,2]
[325398606,1714823648015,10000.0,0.0002,10]
[325398607,1714823667677,399.21605106,0.000125,2]
[325398608,1714823684999,542.98013951,0.00021,7]
[325398609,1714823685905,1674.76230276,0.00018,2]
[325398610,1714823692715,8362.059,0.0002,2]
[325398612,1714823748949,464.92090517,9.999e-05,2]
[325398614,1714823813708,10000.0,0.0002,2]
[325398615,1714823827049,10000.0,0.0002,2]
[325398616,1714823886758,10000.0,0.000225,30]
[325398617,1714824030255,150.0,0.00019898,14]
[325398618,1714824030820,150.0,0.00020259,14]
[325398619,1714824031351,150.0,0.00020621,14]
[325398620,1714824056526,154.7215013,9.999e-05,2]
[325398621,1714824112197,1042.34181435,9.999e-05,2]
[325398622,1714824124895,150.0,0.00019894,2]
[325398623,1714824153618,506.0389855,0.00019178,2]
[325398624,1714824153650,435.05634958,0.00019178,2]
[325398625,1714824153692,500.0,0.00019178,2]
[325398626,1714824153744,500.0,0.00019178,2]
[325398627,1714824153787,500.0,0.00019178,2]
[325398628,1714824153841,533.3601371,0.00019178,2]
[325398661,1714824638204,-1042.34181435,0.00020397,2]
[325398662,1714824638213,-151.33212525,0.00020397,2]
[325398693,1714824642368,154.7215013,9.999e-05,2]
[325398729,1714824647099,-4924.78407667,0.00020397,2]
[325398730,1714824663685,16113.02458354,9.999e-05,2]
[325398731,1714824667544,-5813.86728718,0.000201,2]
[325398732,1714824673285,290.28645511,9.999e-05,2]
[325398733,1714824674652,193.97227624,9.999e-05,2]
[325398734,1714824675461,19210.19164982,9.999e-05,2]
[325398735,1714824678074,180.71831657,0.0001,2]
[325398736,1714824682578,701.01591029,9.999e-05,2]
[325398737,1714824685356,6690.56522675,9.999e-05,2]
[325398738,1714824687382,315.07078977,9.999e-05,2]
[325398739,1714824693367,19210.19164982,9.999e-05,2]
[325398740,1714824700673,154.7215013,9.999e-05,2]
[325398741,1714824712248,2213.32176849,9.999e-05,2]
[325398742,1714824731588,464.92090517,9.999e-05,2]
[325398743,1714824749224,160.534356,0.00019198,2]
[325398744,1714824763435,497.879959,0.00019472,2]
[325398745,1714824841270,779.74220342,0.000189,2]
[325398746,1714824967922,2018.1072372,0.00019337,2]
[325398747,1714825008899,24900.0,0.00019287,2]
[325398748,1714825052461,895.14260668,0.00020186,9]
[325398749,1714825112389,500.0,0.00019178,2]
[325398750,1714825112427,319.04491487,0.00019178,2]
[325398751,1714825112471,500.0,0.00019178,2]
[325398752,1714825112507,500.0,0.00019178,2]
[325398753,1714825112548,459.43362948,0.00019178,2]
[325398754,1714825112621,308.75654165,0.00019178,2]
[325398755,1714825112661,500.0,0.00019178,2]
[325398756,1714825112744,304.290845,0.00019178,2]
[325398757,1714825113012,477.98720628,0.00019178,2]
[325398758,1714825113423,242.63120508,0.00019178,2]
[325398759,1714825113466,435.71835825,0.00019178,2]
[325398760,1714825113510,417.68578369,0.00019178,2]
[325398761,1714825113551,500.0,0.00019178,2]
[325398762,1714825113589,546.59423132,0.00019178,2]
[325398763,1714825113633,520.37752885,0.00019178,2]
[325398764,1714825113677,500.0,0.00019178,2]
[325398765,1714825113720,500.0,0.00019178,2]
[325398766,1714825113763,500.0,0.00019178,2]
[325398767,1714825113837,500.0,0.00019178,2]
[325398768,1714825113891,500.0,0.00019178,2]
[325398769,1714825113951,500.0,0.00019178,2]
[325398782,1714825138984,200.0,0.0002,2]
[325398922,1714825142575,519.82813562,0.000189,2]
[325398954,1714825241896,248.939979,0.00019286,2]
[325398955,1714825434151,783.24978088,0.00020172,9]
[325398956,1714825443831,346.55209041,0.000189,2]
[325398957,1714825458324,1042.34181435,9.999e-05,2]
[325398958,1714825487280,154.7215013,9.999e-05,2]
[325398959,1714825554164,2126.777712,0.00019174,2]
[325398960,1714825637129,150.0,0.00019839,14]
[325398961,1714825637939,150.0,0.00020206,14]
[325398962,1714825638514,150.0,0.00020572,14]
[325398963,1714825639092,150.0,0.00020939,14]
[325398964,1714825639130,6829.65013959,0.00019,2]
[325398965,1714825722642,581.93233287,0.00020066,2]
[325398966,1714825727145,248.939979,0.00019176,2]
[325398967,1714825745162,231.03472694,0.000189,2]
[325398968,1714825771207,200.0,0.0002,2]
[325398970,1714825808317,5000.0,0.000212,13]
[325398971,1714825816698,2107.70742006,0.000212,13]
[325398993,1714825832388,-7878.87670671,0.0002016,2]
[325398995,1714825832397,-189.49749653,0.0002016,2]
[325398997,1714825832407,-1395.86161104,0.0002016,2]
[325398999,1714825832416,-1042.34181435,0.00020161,2]
[325399001,1714825832425,-5814.10771169,0.00020161,2]
[325399003,1714825832434,-154.7215013,0.00020161,2]
[325399004,1714825832443,-488.51147253,0.00020161,2]
[325399006,1714825832453,-2628.34812708,0.00020162,2]
[325399008,1714825832462,-59259.41902587,0.00020162,2]
[325399010,1714825832471,-391.2872535,0.00020162,2]
[325399012,1714825832480,-346.60994642,0.00020162,2]
[325399014,1714825832489,-34307.77163051,0.00020162,2]
[325399016,1714825832498,-22732.22079489,0.00020163,2]
[325399019,1714825833143,154.7215013,9.999e-05,2]
[325399020,1714825833575,1640.24017386,0.000212,13]
[325399021,1714825837708,446.88199142,9.999e-05,2]
[325399067,1714825838746,-154.9045143,0.0002016,2]
[325399069,1714825838757,-419.13737412,0.00020162,2]
[325399071,1714825838766,-391.15305876,0.00020162,2]
[325399073,1714825838775,-4517.16041187,0.00020163,2]
[325399204,1714825843684,-2543.96235074,0.00020163,2]
[325399249,1714825845482,1622.84993563,9.999e-05,2]
[325399267,1714825849878,820.12008693,0.000212,13]
[325399268,1714825853759,155.37436756,0.0002,2]
[325399269,1714826015832,309.04473581,9.999e-05,2]
[325399270,1714826046382,154.02315129,0.000189,2]
[325399271,1714826059551,756.57255378,0.00020294,9]
[325399272,1714826089380,154.7215013,9.999e-05,2]
[325399273,1714826113869,164.21196802,9.999e-05,2]
[325399274,1714826125111,-50000.0,0.00024748,30]
[325399275,1714826174989,-57000.0,0.00024748,30]
[325399276,1714826177320,13938.6200373,0.00019345,2]
[325399277,1714826197785,-23000.0,0.00024748,30]
[325399278,1714826218777,-21000.0,0.00024748,30]
[325399279,1714826241792,3137.11095904,0.00020383,7]
[325399280,1714826248322,-44000.0,0.00024748,30]
[325399281,1714826284833,-20000.0,0.00024748,30]
[325399282,1714826314260,3137.11095904,0.00020266,7]
[325399283,1714826332264,3137.11095904,0.00020381,7]
[325399284,1714826334478,265.85103137,0.00020381,7]
[325399285,1714826335645,4949.11049218,9.999e-05,2]
[325399286,1714826352532,265.85103137,0.00020379,7]
[325399287,1714826356973,3137.11095904,0.00020379,7]
[325399288,1714826370978,3137.11095904,0.00020379,7]
[325399289,1714826372436,265.85103137,0.00020379,7]
[325399290,1714826379021,167.2231327,0.00019178,2]
[325399291,1714826388442,265.85103137,0.00020378,7]
[325399292,1714826389172,556.74229765,0.00020378,7]
[325399293,1714826406442,265.85103137,0.00020377,7]
[325399294,1714826424433,265.85103137,0.00020377,7]
[325399295,1714826433197,167.69453722,0.00019178,2]
[325399296,1714826442502,329.50389053,0.00020377,7]
[325399297,1714826520490,1042.34181435,9.999e-05,2]
[325399298,1714826609909,662.00098454,0.00020285,9]
[325399299,1714826638261,21724.025286,0.00019254,2]
[325399300,1714826668048,164.18627884,0.00020062,2]
[325399301,1714826891778,579.25086149,0.00020273,9]
[325399302,1714826911586,160.534356,0.00019178,2]
[325399303,1714826914001,173.25,0.00019178,2]
[325399382,1714827038923,-1000.0,0.00020161,2]
[325399384,1714827038933,-1000.0,0.00020162,2]
[325399386,1714827038943,-1000.0,0.00020162,2]
[325399388,1714827038952,-1000.0,0.00020164,2]
[325399390,1714827038962,-154.7215013,0.0002017,2]
[325399392,1714827038971,-155.41259984,0.00020268,2]
[325399394,1714827038983,-736.53869554,0.0002027,2]
[325399395,1714827038992,-256.74420491,0.00020367,2]
[325399420,1714827042557,-999.9933705,0.00020367,2]
[325399486,1714827043888,-2031.27790344,0.00020366,2]
[325399487,1714827043901,-6929.79431555,0.00020366,2]
[325399527,1714827046795,-896.40000001,0.00020366,2]
[325399528,1714827159775,319.00436754,9.999e-05,2]
[325399529,1714827162406,319.00436754,9.999e-05,2]
[325399530,1714827166775,319.00436754,9.999e-05,2]
[325399531,1714827207922,506.84450376,0.00020285,9]
[325399532,1714827238350,5698.18523272,0.0002,2]
[325399533,1714827252410,150.0,0.000189,2]
[325399534,1714827275560,1964.5070474,0.000176,2]
[325399535,1714827276858,600.0,0.00012,7]
[325399536,1714827490084,443.48894079,0.00020284,9]
[325399537,1714827553526,150.0,0.000189,2]
[325399539,1714827826496,388.0528232,0.0002027,9]
[325399540,1714828084276,1622.84993563,9.999e-05,2]
[325399541,1714828112809,339.5462203,0.00020164,9]
[325399542,1714828135590,20138.64490073,0.0002,2]
[325399584,1714828231820,-632.50448476,0.00020161,2]
[325399586,1714828231832,-22883.28367755,0.00020258,2]
[325399588,1714828231842,-7878.87670671,0.00020258,2]
[325399590,1714828231851,-58857.60636464,0.00020258,2]
[325399624,1714828237882,-3199.0,0.00020258,2]
[325399697,1714828241838,-999.9933705,0.00020258,2]
[325399698,1714828241865,-3013.69999996,0.00020258,2]
[325399699,1714828241877,-1403.74264898,0.00020258,2]
[325399700,1714828241886,-2018.24877343,0.00020259,2]
[325399850,1714828343816,612.2924521,9.999e-05,2]
[325399851,1714828393272,297.10294278,0.00020156,9]
[325399860,1714828676871,259.96507495,0.00020141,9]
[325399861,1714828808737,150.0,0.00019761,3]
[325399862,1714828839018,304.66044483,0.00019761,2]
[325399863,1714828853034,250.42396214,0.00019761,2]
[325399864,1714828885352,150.0,0.0002,2]
[325399865,1714828957495,227.46944052,0.00020032,9]
[325399866,1714828967415,227.46944052,0.0002107,10]
[325399867,1714829028654,506.0035878,0.00020026,2]
[325399868,1714829238908,170.60208039,0.00020013,9]
[325399869,1714829243925,170.60208039,0.00021054,10]
[325399870,1714829278211,178.217257,0.0002,3]
[325399871,1714829408780,150.0,0.00019753,3]
[325399872,1714829418028,5197.18946554,0.0002,2]
[325399873,1714829418057,10915.835118,0.0002,2]
[325399874,1714829418651,5000.0,0.000212,13]
[325399875,1714829420792,155.77118997,0.0002,2]
[325399876,1714829423740,364.18725658,0.0002,2]
[325399877,1714829424911,280.54594675,0.0002,2]
[325399878,1714829427063,5000.0,0.000212,13]
[325399879,1714829429024,2762.91114629,0.0002,2]
[325399880,1714829430950,155.19982494,0.0002,2]
[325399890,1714829432088,-718.189334,0.00020099,2]
[325399891,1714829432098,-154.81422293,0.00020099,2]
[325399892,1714829432108,-1395.86161104,0.000201,2]
[325399893,1714829432118,-1379.02545459,0.000201,2]
[325399894,1714829432126,-67474.04238408,0.00020101,2]
[325399895,1714829432136,-5814.10771169,0.00020102,2]
[325399896,1714829432149,-5464.74132977,0.00020102,2]
[325399897,1714829432158,-7878.87670671,0.00020102,2]
[325399898,1714829432167,-9860.2946928,0.00020103,2]
[325399920,1714829434612,229.19864099,0.0002,2]
[325399921,1714829435726,5000.0,0.000212,13]
[325399948,1714829438103,-404.80287024,0.00020002,2]
[325399950,1714829438113,-5402.85552013,0.00020103,2]
[325399952,1714829438122,-319.00436754,0.00020103,2]
[325399954,1714829438132,-319.00436754,0.00020103,2]
[325399956,1714829438141,-319.00436754,0.00020103,2]
[325399958,1714829438153,-319.00436754,0.00020103,2]
[325399960,1714829438165,-319.00436754,0.00020103,2]
[325399962,1714829438174,-319.00436754,0.00020103,2]
[325399964,1714829438183,-15683.13964121,0.00020103,2]
[325399966,1714829438192,-150.0,0.00020128,3]
[325399968,1714829438202,-648.07617,0.000202,2]
[325399970,1714829438211,-648.07617,0.0002021,2]
[325399972,1714829438220,-648.07617,0.0002022,2]
[325399974,1714829438229,-262.04725318,0.0002023,2]
[325400038,1714829442003,16113.02458354,0.0002,2]
[325400085,1714829443726,363.8776214,0.0002,2]
[325400086,1714829444253,5000.0,0.000212,13]
[325400090,1714829450640,446.88199142,9.999e-05,2]
[325400091,1714829452400,5000.0,0.000212,13]
[325400092,1714829460832,291.90695137,9.999e-05,2]
[325400093,1714829461329,5000.0,0.000212,13]
[325400094,1714829462004,4582.2573266,0.0002,2]
[325400095,1714829463090,224.37396214,0.0002,2]
[325400096,1714829470055,1989.40284339,0.000212,13]
[325400097,1714829493553,820.12008693,0.000212,13]
[325400098,1714829509706,3827.22707234,0.000212,13]
[325400099,1714829557943,-1396.02575092,0.00020093,2]
[325400100,1714829557980,-5464.74132977,0.00020093,2]
[325400101,1714829558018,-2563.738968,0.00020094,2]
[325400102,1714829558060,-10467.84826141,0.00020095,2]
[325400103,1714829559450,1042.34181435,9.999e-05,2]
[325400104,1714829606786,309.28863614,0.0001,2]
[325400105,1714829609486,19210.19164982,9.999e-05,2]
[325400106,1714829625491,1100.24586009,9.999e-05,2]
[325400107,1714829668369,-1335.70800233,0.00020093,2]
[325400108,1714829668411,-2151.93155539,0.00020094,2]
[325400109,1714829668587,-500.0,0.00020096,2]
[325400110,1714829668625,-500.0,0.00020096,2]
[325400111,1714829668665,-500.0,0.00020096,2]
[325400112,1714829668702,-303.91011244,0.00020096,2]
[325400113,1714829723464,6115.9601571,0.00019288,2]
[325400114,1714829751224,379.70928376,9.999e-05,2]
[325400115,1714829836049,323.8422962,0.00019998,2]
[325400116,1714829887167,154.7215013,0.00019998,2]
[325400117,1714829901181,164.7582934,0.00019998,2]
[325400119,1714829976760,24900.0,0.00019178,2]
[325400120,1714830012993,150.0,0.00019826,3]
[325400121,1714830045550,6790.8060151,0.00019178,2]
[325400122,1714830081122,189.53891685,0.00018,2]
[325400123,1714830091668,2500.0,0.0002,2]
[325400124,1714830092941,280.95378719,0.00019826,2]
[325400125,1714830131204,224.37396214,0.00018,2]
[325400126,1714830132563,154.70605849,9.999e-05,2]
[325400127,1714830140271,1146.79943163,0.00015,2]
[325400128,1714830140805,158.07345455,9.999e-05,2]
[325400129,1714830145789,162.045559,0.00019178,2]
[325400130,1714830149006,319.00436754,9.999e-05,2]
[325400131,1714830200010,1042.34181435,9.999e-05,2]
[325400132,1714830235248,259.07383696,0.00019998,2]
[325400133,1714830294443,154.7215013,9.999e-05,2]
[325400134,1714830403871,379.70928376,9.999e-05,2]
[325400135,1714830468682,1335.70800233,9.999e-05,2]
[325400136,1714830584827,8900.3527924,0.00019065,2]
[325400137,1714830586494,1396.02575092,9.999e-05,2]
[325400138,1714830610365,150.0,0.00019799,3]
[325400145,1714830632310,-319.00436754,0.00020058,2]
[325400146,1714830632322,-339.2410393,0.00020059,2]
[325400147,1714830632372,-2289.10708778,0.00020059,2]
[325400148,1714830632382,-1335.70800233,0.00020059,2]
[325400149,1714830632392,-189.53891685,0.00020059,2]
[325400150,1714830632402,-7878.87670671,0.00020059,2]
[325400151,1714830632413,-1395.53333128,0.0002006,2]
[325400152,1714830632424,-5814.10771169,0.00020061,2]
[325400153,1714830632434,-59259.41902587,0.00020061,2]
[325400154,1714830632445,-64018.03345568,0.00020062,2]
[325400155,1714830632720,391.2872535,0.00019178,2]
[325400156,1714830632760,346.60994642,0.00019178,2]
[325400157,1714830633599,500.0,0.00019178,2]
[325400158,1714830633657,500.0,0.00019178,2]
[325400159,1714830633721,616.49789933,0.00019178,2]
[325400168,1714830638347,-379.70928376,0.00020057,2]
[325400170,1714830638357,-610.14331559,0.00020062,2]
[325400222,1714830643118,-2845.86561281,0.00020062,2]
[325400225,1714830643130,-488.51147253,0.00020091,2]
[325400227,1714830643143,-154.81424453,0.00020093,2]
[325400229,1714830643155,-154.70605849,0.00020096,2]
[325400232,1714830643168,-154.70605849,0.00020096,2]
[325400234,1714830643179,-154.70605849,0.00020096,2]
[325400236,1714830643191,-154.70605849,0.00020096,2]
[325400238,1714830643204,-154.70605849,0.00020096,2]
[325400240,1714830643217,-295.29179161,0.00020096,2]
[325400242,1714830643229,-157.63378242,0.00020096,2]
[325400243,1714830643241,-661.16507225,0.00020096,2]
[325400244,1714830643253,-615.32026,0.000201,2]
[325400245,1714830643265,-768.2061691,0.00020106,2]
[325400246,1714830643284,-231.7938309,0.00020106,2]
[325400247,1714830643296,-1000.0,0.00020106,2]
[325400248,1714830643308,-615.32027,0.00020143,2]
[325400249,1714830643320,-150.0,0.00020169,3]
[325400251,1714830643334,-615.32027,0.00020186,2]
[325400253,1714830643347,-615.32026,0.00020229,2]
[325400254,1714830643359,-1000.0,0.0002026,2]
[325400255,1714830643373,-2161.68578484,0.00020261,2]
[325400257,1714830643391,-16747.47619919,0.00020261,2]
[325400258,1714830643410,-1301.38352155,0.00020261,2]
[325400259,1714830643422,-1000.47101641,0.00020262,2]
[325400260,1714830643435,-615.32027,0.00020271,2]
[325400261,1714830643447,-207.25906956,0.00020282,2]
[325400262,1714830643460,-615.32027,0.00020314,2]
[325400263,1714830643473,-1160.17336382,0.00020319,2]
[325400264,1714830643485,-615.32027,0.00020357,2]
[325400265,1714830643497,-289.71251599,0.00020371,2]
[325400266,1714830643511,-564.94459798,0.00020377,2]
[325400267,1714830643524,-154.7215013,0.00020382,2]
[325400268,1714830643536,-422.44863447,0.00020382,2]
[325400269,1714830643547,-939.92432018,0.00020382,2]
[325400270,1714830643556,-311.78723005,0.00020382,2]
[325400271,1714830643568,-1653.25612085,0.00020382,2]
[325400272,1714830643773,-1562.67318727,0.00020382,2]
[325400273,1714830643792,-2886.6204983,0.00020382,2]
[325400274,1714830643852,-389.07306561,0.00020382,2]
[325400275,1714830644056,-353.095,0.00020382,2]
[325400276,1714830645612,5000.0,0.000212,13]
[325400294,1714830653773,5000.0,0.000212,13]
[325400295,1714830654267,164.21196802,9.999e-05,2]
[325400296,1714830654304,290.28645511,0.00019065,2]
[325400297,1714830658931,3137.11095904,0.00020998,7]
[325400298,1714830659600,155.37436756,0.00019065,2]
[325400299,1714830662046,5000.0,0.000212,13]
[325400300,1714830663131,265.85103137,0.00020998,7]
[325400301,1714830670123,1906.16247148,0.000212,13]
[325400302,1714830674359,154.7215013,9.999e-05,2]
[325400303,1714830677084,3137.11095904,0.00020998,7]
[325400304,1714830677532,154.7215013,9.999e-05,2]
[325400305,1714830681002,265.85103137,0.00020998,7]
[325400306,1714830694994,265.85103137,0.00020998,7]
[325400307,1714830698825,3137.11095904,0.00020998,7]
[325400308,1714830704071,309.04473581,9.999e-05,2]
[325400309,1714830714983,265.85103137,0.00020998,7]
[325400314,1714830720817,3137.11095904,0.00020998,7]
[325400315,1714830734994,265.85103137,0.00020998,7]
[325400316,1714830739963,3137.11095904,0.00020998,7]
[325400317,1714830755916,243.46930042,0.00020998,7]
[325400318,1714830758983,265.85103137,0.00020998,7]
[325400319,1714830763290,4758.92098351,0.0002001,2]
[325400320,1714830778990,329.50389053,0.0002038,7]
[325400321,1714830830675,200.0,0.0002,2]
[325400322,1714830873444,150.0,0.000189,2]
[325400324,1714830889110,4152.56435314,0.000125,2]
[325400325,1714830901541,1000.0,0.00012,7]
[325400326,1714831001453,248.9399806,0.0001945,2]
[325400327,1714831153355,289.55314523,0.00019542,2]
[325400328,1714831153382,7761.50777847,0.00019542,2]
[325400329,1714831174920,150.0,0.000189,2]
[325400330,1714831209290,150.0,0.00019672,3]
[325400331,1714831331475,183.12182719,0.00019954,2]
[325400332,1714831444728,189.53891685,0.00018,2]
[325400333,1714831808680,150.0,0.00019663,3]
[325400351,1714831838525,-150.0,0.00020046,3]
[325400352,1714831838539,-1000.0,0.00020094,2]
[325400353,1714831838549,-2033.05,0.00020097,2]
[325400366,1714831843952,-3720.43084909,0.00020097,2]
[325400368,1714831843963,-344.96220511,0.00020097,2]
[325400380,1714831846645,-655.03779489,0.00020097,2]
[325400381,1714831846655,-1000.0,0.00020097,2]
[325400382,1714831846665,-1335.70800233,0.00020099,2]
[325400383,1714831846675,-1000.0,0.00020261,2]
[325400384,1714831846684,-647.00866819,0.00020268,2]
[325400385,1714831846694,-179.6108777,0.0002038,2]
[325400386,1714831846706,-7127.136542,0.00020381,2]
[325400406,1714831922922,2500.0,0.0002,2]
[325400410,1714832027218,412.46510919,9.999e-05,2]
[325400411,1714832111206,20467.27,0.0002,2]
[325400421,1714832300529,-150.0,0.00028637,120]
[325400422,1714832408742,150.0,0.00019626,3]